Cogmind - Beta 13 @@@ ROGUE MODE // 2024.04.03 @ 22:24:27 Player: Ladmageddon Result: Destroyed by X-57 Shotgunner with High-powered Shotgun Performance ------------- Evolutions (2) 1000 Regions Visited (4) 800 Robots Destroyed (33) 165 Value Destroyed (941) 941 Prototype IDs (0) 0 Alien Tech Used (0) 0 Bonus (11) 11 TOTAL SCORE: 2917 Bonus ------- High Alert Combat Kills 11 Cogmind --------- Core Integrity 0/550 Matter 154/300 Energy 57/100 System Corruption 2% Temperature Cool (0) Movement Core (50) Location -8/Materials Parts ------- > --- POWER (2) -------- (None) > --- PROPULSION (3) --- (None) > --- UTILITY (3) ------ (None) > --- WEAPON (3) ------- Axe > --- INVENTORY (5) ---- Light Ion Engine Armored Wheel Peak State ------------ > --- POWER ------------ Light Ion Engine > --- PROPULSION ------- Armored Wheel Armored Wheel Armored Wheel > --- UTILITY ---------- Heat Sink Small Storage Unit Terrain Scanner > --- WEAPON ----------- Beamcaster Light Assault Rifle Shotgun > --- INVENTORY -------- Light Ion Engine Armored Wheel Armored Wheel Heavy Assault Rifle Mining Laser Axe [Rating: 19] Favorites ----------- Power Ion Engine Engine Ion Engine Propulsion Light Treads Treads Light Treads Wheel Armored Wheel Utility Small Storage Unit Device Terrain Scanner Storage Small Storage Unit Protection Light Armor Plating Weapon Light Assault Rifle Energy Gun Beamcaster Ballistic Gun Light Assault Rifle Launcher Grenade Launcher Special Weapon Mining Laser Slashing Weapon Axe Build | -11 -10 -10 -9 -8 ------- Run | Yrd Mat Min Mat Mat Slots Evolved 4 | . . . 2 2 Power 1 | . . . . 1 Propulsion 1 | . . . . 1 Utility 1 | . . . 1 . Weapon 1 | . . . 1 . Parts Attached 35 | 6 4 5 7 13 Power 5 | 1 1 . . 3 Engine 5 | 1 1 . . 3 Core . | . . . . . Reactor . | . . . . . Propulsion 10 | 2 1 2 3 2 Treads 6 | 2 1 2 1 . Leg . | . . . . . Wheel 4 | . . . 2 2 Hover . | . . . . . Flight . | . . . . . Utility 5 | 1 1 . 2 1 Device 2 | . 1 . 1 . Storage 1 | 1 . . . . Processor . | . . . . . Hackware . | . . . . . Protection 2 | . . . 1 1 Artifact . | . . . . . Weapon 15 | 2 1 3 2 7 Energy Gun 4 | 1 . 1 . 2 Energy Cannon . | . . . . . Ballistic Gun 7 | 1 . 2 1 3 Ballistic Cannon . | . . . . . Launcher 1 | . . . 1 . Special Weapon 2 | . 1 . . 1 Impact Weapon . | . . . . . Slashing Weapon 1 | . . . . 1 Piercing Weapon . | . . . . . Special Melee Weapon . | . . . . . Unidentified Prototypes . | . . . . . Parts Lost 21 | . . . 2 19 Power 3 | . . . . 3 Propulsion 5 | . . . 1 4 Utility 5 | . . . 1 4 Weapon 8 | . . . . 8 Highest Loss Streak 19 | . . . 1 19 To Critical Strikes . | . . . . . Average Slot Usage (%) 92 | . 86 100 98 73 Engine 12 | . 14 14 11 8 Treads 20 | . 28 28 18 . Wheel 4 | . . . 2 23 Device 10 | . 3 14 12 10 Storage 12 | . 14 14 11 9 Protection 3 | . . . 8 . Energy Gun 8 | . 14 4 11 4 Ballistic Gun 12 | . 11 11 16 9 Launcher 2 | . . . 5 4 Special Weapon 3 | . . 12 . . Naked Turns . | . . . . . Heaviest Build 25 | 13 14 19 24 25 Greatest Support 40 | 40 40 40 40 36 Greatest Overweight (x) 1 | . . . 1 . Average Overweight (x) . | . . . . . Largest Inventory Capacity 8 | 8 8 8 8 8 Average Capacity 7 | 7 8 8 8 7 Most Carried 8 | 5 7 8 8 8 Average Carried 5 | 3 4 5 6 4 Final Capacity 8 | 8 8 8 8 5 Final Carried 8 | 3 6 8 6 2 Class Distribution -------------------- 59% | Mutant 23% | Scavenger-Tank 7% | Scavenger-Skirmisher 6% | Skirmisher Dominant Class ---------------- Mutant | -10/Materials Mutant | -10/Mines Scavenger-Tank | -9/Materials Skirmisher | -8/Materials Resources | -11 -10 -10 -9 -8 ----------- Run | Yrd Mat Min Mat Mat Matter Collected 717 | 240 38 79 239 121 Remotely . | . . . . . Salvage Created 1060 | . 204 20 615 221 Parts 53 | . 7 . 24 22 Haulers Intercepted 3 | . . . 3 . Recyclers Shooed 1 | . . 1 . . Parts Field Recycled . | . . . . . Retrieved Matter . | . . . . . Parts Self-Destructed . | . . . . . Prevented . | . . . . . Kills | -11 -10 -10 -9 -8 ------- Run | Yrd Mat Min Mat Mat Combat Hostiles Destroyed 24 | . 4 2 9 9 Guns 13 | . 2 1 7 3 Cannons 1 | . . 1 . . AOE 10 | . 2 . 2 6 Classes Destroyed 11 | . 3 . 4 4 Builder 2 | . 1 . 1 . Tunneler 1 | . . . . 1 Hauler 3 | . . . 3 . Recycler 1 | . 1 . . . Mechanic 1 | . . . 1 . Watcher 1 | . . . 1 . Swarmer 4 | . . . . 4 Grunt 16 | . 4 2 8 2 Duelist 1 | . . . . 1 Sentry 2 | . . . 1 1 Heavy 1 | . . . . 1 Best Kill Streak 8 | . 5 1 4 8 Combat Bots Only 7 | . 4 1 4 7 Max Kills in Single Turn 4 | . 3 1 1 4 Gunslinging . | . . . . . Exploded 3 | . 2 . 1 3 Melee . | . . . . . Uniques/NPCs Destroyed . | . . . . . Combat | -11 -10 -10 -9 -8 -------- Run | Yrd Mat Min Mat Mat Hostile Shots Fired 300 | . 27 24 73 176 Missed 104 | . 8 3 24 69 Damage Taken 2794 | . 211 261 655 1667 Core 770 | . 11 51 145 563 Absorbed by Shields . | . . . . . Core Remaining (%) 79 | 100 . 75 63 . Volleys Fired 121 | . 24 19 52 26 Largest 3 | . 2 2 3 3 Hottest 150 | . 70 150 125 98 Shots Fired 224 | . 48 28 102 46 Gun 204 | . 48 19 96 41 Cannon . | . . . . . Launcher 11 | . . . 6 5 Special 9 | . . 9 . . Kinetic 125 | . 24 9 66 26 Thermal 88 | . 24 19 30 15 Explosive 11 | . . . 6 5 Electromagnetic . | . . . . . Robot Hit Streak 15 | . 7 15 8 8 Robot Miss Streak 4 | . 3 3 4 4 Penetration Max . | . . . . . Secondary Targets 3 | . 1 . 1 1 Max Gunslinging Chain 1 | . 1 . 1 1 Shots Hit Robots 133 | . 29 21 59 24 Core Hits 67 | . 12 6 26 23 Critical Kills . | . . . . . Critical Parts Destroyed 1 | . . . 1 . Critical Strikes 4 | . 1 . 3 . Burn 3 | . 1 . 2 . Destroy 1 | . . . 1 . Melee Attacks 4 | . . . . 4 Impact . | . . . . . Slashing 4 | . . . . 4 Piercing . | . . . . . Sneak Attacks . | . . . . . Combat Hostiles . | . . . . . Follow-up Attacks . | . . . . . Damage Inflicted 2947 | . 625 289 1129 904 Guns 1733 | . 306 168 869 390 Cannons . | . . . . . Explosions 923 | . 307 . 260 356 Melee 158 | . . . . 158 Ramming 13 | . 12 1 . . Kinetic 915 | . 106 54 514 241 Thermal 938 | . 200 234 355 149 Explosive 923 | . 307 . 260 356 Electromagnetic . | . . . . . Impact . | . . . . . Slashing 158 | . . . . 158 Piercing . | . . . . . Highest Corruption 2 | . . . . 2 Average Corruption 2 | . . . . 2 Corruption Purged . | . . . . . Corruption Blocked . | . . . . . Overload Shots . | . . . . . Overflow Damage . | . . . . . Projectiles . | . . . . . Explosions . | . . . . . Melee . | . . . . . Knockbacks . | . . . . . Impact . | . . . . . Kinetic . | . . . . . Secondary . | . . . . . Self-Inflicted Damage 7 | . . . 7 . Shots 1 | . . . 1 . Rammed 6 | . 3 1 1 1 Targets Rammed 6 | . 3 1 1 1 Kicked . | . . . . . Crushed . | . . . . . Highest Temperature 561 | . 392 449 561 34 Average Temperature 169 | . 151 215 190 12 Received Heat Transfer 771 | . 117 147 354 153 Effects 24 | . 2 7 15 . Shutdowns 7 | . 1 2 4 . Energy Bleed 3 | . . . 3 . Interference 9 | . . 2 7 . Short Circuit 1 | . . . 1 . Damage (minor) 2 | . 1 1 . . Damage (major) 2 | . . 2 . . Siege Activations . | . . . . . Robots Corrupted . | . . . . . Combat Hostiles . | . . . . . Parts Fried . | . . . . . Impact Corruptions . | . . . . . Robots Melted . | . . . . . Combat Hostiles . | . . . . . Parts Melted . | . . . . . Heat Transferred 2285 | . 666 583 777 259 Parts Sabotaged . | . . . . . Parts Stolen . | . . . . . Parts Stripped . | . . . . . Power Chain Reactions . | . . . . . Alert | -11 -10 -10 -9 -8 ------- Run | Yrd Mat Min Mat Mat Peak Influence 454 | . 196 127 454 378 Initial 191 | . . 76 49 191 Average 166 | . 118 121 209 285 Maximum Alert Level 2 | . . . 2 1 Low Security (%) 71 | 100 100 100 43 28 Level 1 25 | . . . 47 71 Level 2 2 | . . . 8 . Level 3 . | . . . . . Level 4 . | . . . . . Level 5 . | . . . . . High Security . | . . . . . Max Security . | . . . . . Squads Dispatched 7 | . 3 . 1 3 Investigation 1 | . 1 . . . Extermination . | . . . . . Reinforcement 6 | . 2 . 1 3 Assault . | . . . . . Garrison . | . . . . . Intercept . | . . . . . Searches Triggered . | . . . . . Construction Impeded 1 | . . . . 1 Haulers Reinforced . | . . . . . Active Scanning Responses . | . . . . . Cargo Convoy Interrupts . | . . . . . Stealth | -11 -10 -10 -9 -8 --------- Run | Yrd Mat Min Mat Mat Distress Signals 3 | . 1 . 1 1 Communications Jammed . | . . . . . Distress Signals . | . . . . . Times Spotted 46 | . 8 4 16 18 Peak Tracking Total 7 | . 4 2 6 7 Tactical Retreats 2 | . . . 2 . Traps | -11 -10 -10 -9 -8 ------- Run | Yrd Mat Min Mat Mat Traps Triggered 1 | . 1 . . . Indirectly . | . . . . . Trap Hack Attempts . | . . . . . Triggered . | . . . . . Disarmed . | . . . . . Reprogrammed . | . . . . . Reused . | . . . . . Traps Extracted . | . . . . . Installed . | . . . . . Triggered . | . . . . . Machines | -11 -10 -10 -9 -8 ---------- Run | Yrd Mat Min Mat Mat Machines Disabled 1 | . 1 . . . Max in Single Turn 1 | . 1 . . . Machines Repaired . | . . . . . Machines Dismantled . | . . . . . Machines Sabotaged . | . . . . . Overloaded Fab Kills . | . . . . . Hacking | -11 -10 -10 -9 -8 --------- Run | Yrd Mat Min Mat Mat Machines Accessed 2 | . 1 . 1 . Terminals 2 | . 1 . 1 . Fabricators . | . . . . . Repair Stations . | . . . . . Recycling Units . | . . . . . Scanalyzers . | . . . . . Garrison Access . | . . . . . Total Hacks 5 | . 4 . 1 . Successful 3 | . 2 . 1 . Failed 2 | . 2 . . . Catastrophic 1 | . 1 . . . Database Lockouts . | . . . . . Manual . | . . . . . Terminals 5 | . 4 . 1 . Fabricators . | . . . . . Repair Stations . | . . . . . Recycling Units . | . . . . . Scanalyzers . | . . . . . Garrison Access . | . . . . . Terminal Hacks 3 | . 2 . 1 . Record 2 | . 2 . . . Zone Layout 1 | . . . 1 . Fabricator Hacks . | . . . . . Repair Station Hacks . | . . . . . Recycling Unit Hacks . | . . . . . Scanalyzer . | . . . . . Garrison Access Hacks . | . . . . . Unauthorized Hacks . | . . . . . Terminals . | . . . . . Fabricators . | . . . . . Repair Stations . | . . . . . Recycling Units . | . . . . . Scanalyzers . | . . . . . Garrison Access . | . . . . . Data Cores Recovered . | . . . . . Used . | . . . . . Hacking Detections 2 | . 1 . 1 . Full Trace Events 1 | . 1 . . . Feedback Events . | . . . . . Feedback Blocked . | . . . . . Robot Schematics Acquired . | . . . . . Robots Built . | . . . . . Authchips . | . . . . . Time . | . . . . . Total Robot Build Rating . | . . . . . Part Schematics Acquired . | . . . . . Parts Built . | . . . . . Authchips . | . . . . . Time . | . . . . . Total Part Build Rating . | . . . . . Parts Repaired . | . . . . . Time . | . . . . . Parts Recycled . | . . . . . Recycled Matter . | . . . . . Retrieved Matter . | . . . . . Retrieved Components . | . . . . . Parts Scanalyzed . | . . . . . Part Schematics Acquired . | . . . . . Parts Damaged . | . . . . . Bothacking | -11 -10 -10 -9 -8 ------------ Run | Yrd Mat Min Mat Mat Used RIF Installer . | . . . . . Robots Hacked . | . . . . . Non-combat . | . . . . . Combat . | . . . . . Robot Hacks Applied . | . . . . . Relay Couplers Released . | . . . . . Fabnet Peak Effective % . | . . . . . Robots Rewired . | . . . . . Allies Hacked . | . . . . . Hacks Repelled . | . . . . . Allies | -11 -10 -10 -9 -8 -------- Run | Yrd Mat Min Mat Mat Total Allies . | . . . . . Largest Group . | . . . . . Highest-Rated Group . | . . . . . Highest-Rated Ally . | . . . . . Total Orders . | . . . . . Ally Attacks . | . . . . . Total Damage . | . . . . . Kills . | . . . . . Allies Corrupted . | . . . . . Allies Melted . | . . . . . Intel | -11 -10 -10 -9 -8 ------- Run | Yrd Mat Min Mat Mat Robot Analysis Total . | . . . . . Derelict Logs Recovered . | . . . . . Drone Launches . | . . . . . Drone Recoveries . | . . . . . Exploration | -11 -10 -10 -9 -8 ------------- Run | Yrd Mat Min Mat Mat Turns Passed 1278 | 81 250 356 386 205 Spaces Moved 594 | 47 106 176 156 109 Core 7 | 7 . . . . Treads 441 | 40 106 176 119 . Legs . | . . . . . Wheels 146 | . . . 37 109 Hover . | . . . . . Flight . | . . . . . Fastest Speed 50 | 50 160 160 90 90 Average Speed 141 | 143 160 160 143 90 Slowest Speed 240 | 160 160 160 240 90 Overloaded Moves . | . . . . . Propulsion Burnouts . | . . . . . Robots Hopped . | . . . . . Cave-ins Triggered . | . . . . . Exploration Rate (%) 17 | 4 20 30 19 12 Regions Visited 4 Branch Regions 1 Pre-discovered Areas . | . . . . . Known Exits Taken . | . . . . . Unknown Exits Taken 4 | 1 1 1 1 . Scrap Searched . | . . . . . Spaces Dug . | . . . . . Terrain Destroyed 97 | . 16 1 47 33 Melee . | . . . . . Projectile 1 | . . 1 . . AOE 96 | . 16 . 47 33 Terrain Rammed . | . . . . . Walls Destroyed . | . . . . . Machines Disabled . | . . . . . Actions | -11 -10 -10 -9 -8 --------- Run | Yrd Mat Min Mat Mat Total 800 | 60 141 206 227 166 Wait 5 | . . . . 5 Move 590 | 46 105 175 155 109 Hop . | . . . . . Pick Up 30 | 8 5 3 7 7 Fast Attach 2 | 1 . . . 1 Attach 21 | 5 2 . 4 10 Detach . | . . . . . Swap 12 | . 2 5 3 2 Drop 9 | . . 3 5 1 Fire 121 | . 24 19 52 26 Melee 4 | . . . . 4 Ram 1 | . . . . 1 Kick . | . . . . . Crush 5 | . 3 1 1 . Escape Stasis . | . . . . . Rewire . | . . . . . Trap . | . . . . . Miscellaneous . | . . . . . Route ------- -11/Scrapyard -10/Materials -10/Mines -9/Materials -8/Materials History --------- Turn | Location | Event 8 | -11/Scrapyard | Discovered new exit (range 15) 82 | -11/Scrapyard | Entered Materials 303 | -10/Materials | Discovered new exit (range 8) 308 | -10/Materials | Build established: Mutant 332 | -10/Materials | Entered Mines 344 | -10/Mines | Met a Derelict bent on vengeance 612 | -10/Mines | Discovered new exit (range 10) 620 | -10/Mines | Joined a pair of Derelicts in attacking an 0b10 outpost 688 | -10/Mines | Entered Materials 688 | -9/Materials | Evolved 2 slots: Utility x1, Weapon x1 913 | -9/Materials | Discovered new exit (range 19) 1074 | -9/Materials | Entered another Materials area 1074 | -8/Materials | Evolved 2 slots: Power x1, Propulsion x1 1181 | -8/Materials | Destroyed 7 combat bots 1239 | -8/Materials | Core integrity fell below 50% 1273 | -8/Materials | Core integrity fell below 20% 1279 | -8/Materials | Destroyed by X-57 Shotgunner with High-powered Shotgun Last Messages --------------- Destabilizing: System corrupted (+2). Mining Laser destroyed. ALERT: Construction progress impeded, dispatching reinforcements to local area. U-05 Engineer builds a Wall. Acquired Lgt. Armor Plating. U-05 Engineer builds a Wall. K-01 Serf collects debris. U-05 Engineer destroyed. Acquired Beam Rifle. K-01 Serf collects debris. K-01 Serf destroyed. Acquired 12 matter. Acquired 56 matter. Lgt. Armor Plating destroyed. Arm. Wheel destroyed. Sml. Storage Unit destroyed. M-13 Machinist repairs X-57 Shotgunner. Beam Rifle destroyed. M-13 Machinist repairs X-57 Shotgunner. Map ----- +----------------------------------------------------+ | ?##??# * #???????????????????????????????????????? | | ?????# #???????????????????????????????????????? | | ?????# #????????#??????????????????????????????? | | ###??# ###########????????#????????????????????? | | ?# # #?#???????????????????????????? | | ?# # [ #???#?????????????????????????? | | ?# # [[ #???????#?????????????????????? | | # # [ #?????????????????????????????? | | """ # # ! #??#??????????????????????????? | | """ + + ##???##??#????????????????????? | | """ # # #????????##???????????????????? | | # # ######### #???????????????????? | | ###### ########### = # ##???????????#??????? | | #???# ############################ #?????? | | ????# =! % ! #?????? | | ##??# [ =[ % #?????? | | ????# = % #?????? | | ????# ####### ########## ####### #?????? | | ????#######?????# ## ###### #???????? #??????? | | ?????????#??????# # %%!=!#! # "Y" #???????????? | | ??#????????????## # =|! " = + #???????????? | | ??? ?#??????????# #! % %=#! # ! ]#???????????? | | ???????? ??????# " # #?????????????????? | | ????????"?"???### ########## ##??#?????????????? | | ??????????????# ####### #????????????????? | | ??????????????# @xm #????????????????? | | ???????????? ?+ T u #????????????????? | | ??????????????# t gx #????????????????? | | ??????????????#! ####### g #????????????????? | | ??????????????## ????????##g ##????????????????? | | ???????????????#???????????# #?????????????????? | | ???????????????????????????# #?????????????????? | | ???????????????????????????# #?????????????????? | | ???????????????????????????# #?????????????????? | | ???????????????????????????? +?????????????????? | | ???????????????????????????? #?????????????????? | | ????????????????????????????# ##?????????????????? | | ????????????????????????????? #??????????????????? | | ????????????????????????????? #??????????????????? | | ????????????????????????????? #??????????????????? | | ????????????????????????????? ???????????????????? | | ?????????????????????????????????????????????????? | | ?????????????????????????????????????????????????? | | ?????????????????????????????????????????????????? | | ?????????????????????????????????????????????????? | | ?????????????????????????????????????????????????? | | ?????????????????????????????????????????????????? | | ?????????????????????????????????????????????????? | | ?????????????????????????????????????????????????? | | ?????????????????????????????????????????????????? | +----------------------------------------------------+ Best States ------------- Heat Dissipation 41 Energy Generation 15 Energy Capacity 275 Matter Stores 300 Matter Capacity 300 Sight Range 16 Terrain Scan Range 14 Terrain Scan Density 10 Armor Coverage 150 Evasion (%) 50 Recoil Reduction 2 Item Schematics ----------------- None Robot Schematics ------------------ None Fabricated ------------ Nothing Alien Tech Used ----------------- None Achievements -------------- One Hack Too Far Challenges ------------ None Game ------ Seed ArmoredProjectionSystem Manual? 0 Play Time 00:15:31 Cumulative 2.8 hours Start 2024.04.03 @ 22:09:47 End 2024.04.03 @ 22:24:27 Sessions 1 Manual Loads 0 Difficulty Rogue Special Mode None Game No. 4 Rogue 1 Adventurer 3 Explorer 0 Win Type - Total 0 Types 0/0/0/0/0/0/0/0/0 Lore% 0 Gallery% 10 Achievement% 7 Wizard Run 0 Options --------- Layout 1 ASCII 0 Keyboard 0 Movement Arrows Keybinds 0 Fullscreen 1 Font 24/Smallcaps Map View 50x35 Zoom Use 0% Tactical HUD 0 Map Filters NONE Filters NONE Steam 1 RUN: 2dc66a3c-b0ca-4fb9-a54f-388a43637e40